fUST/lending_fUST_20251010
["ID","MTS","AMOUNT","RATE_DAILY","PERIOD"]
[390506073,1760067052648,-151.0,0.000168,2]
[390506075,1760067052657,-663.0,0.00016819,2]
[390506077,1760067052667,-177.16033443,0.00016886,2]
[390506079,1760067052676,-663.0,0.0001689,2]
[390506081,1760067052686,-189.6925741,0.000169,2]
[390506083,1760067052696,-379.1654282,0.000169,2]
[390506085,1760067052705,-391.7808599,0.000169,2]
[390506087,1760067052714,-780.4814084,0.000169,2]
[390506089,1760067052725,-151.0,0.000169,2]
[390506091,1760067052735,-151.0,0.000169,2]
[390506093,1760067052745,-3456.76874029,0.00016914,2]
[390506095,1760067052754,-527.37327839,0.00016935,2]
[390506097,1760067052763,-500.0,0.00016973,2]
[390506098,1760067052772,-500.0,0.00016973,2]
[390506100,1760067052782,-500.0,0.00016973,2]
[390506102,1760067052792,-500.0,0.00016973,2]
[390506104,1760067052810,-500.34845163,0.00016973,2]
[390506106,1760067052820,-500.0,0.00016973,2]
[390506108,1760067052830,-500.0,0.00016973,2]
[390506110,1760067052839,-500.0,0.00016973,2]
[390506112,1760067052849,-500.0,0.00016973,2]
[390506114,1760067052859,-157.30324439,0.00016973,2]
[390506116,1760067052869,-500.0,0.00016973,2]
[390506118,1760067052879,-500.0,0.00016973,2]
[390506119,1760067052889,-500.0,0.00016973,2]
[390506121,1760067052898,-161.86847584,0.00016973,2]
[390506123,1760067052908,-500.0,0.00016973,2]
[390506125,1760067052917,-500.0,0.00016973,2]
[390506127,1760067052926,-500.0,0.00016973,2]
[390506129,1760067052936,-500.0,0.00016973,2]
[390506131,1760067052945,-500.0,0.00016973,2]
[390506133,1760067052954,-500.0,0.00016973,2]
[390506135,1760067052964,-500.0,0.00016973,2]
[390506137,1760067052973,-500.0,0.00016973,2]
[390506139,1760067052983,-500.0,0.00016973,2]
[390506141,1760067052994,-500.0,0.00016973,2]
[390506143,1760067053005,-500.0,0.00016973,2]
[390506145,1760067053015,-500.0,0.00016973,2]
[390506147,1760067053026,-500.0,0.00016973,2]
[390506149,1760067053037,-501.76080862,0.00016973,2]
[390506151,1760067053048,-500.0,0.00016973,2]
[390506153,1760067053062,-500.86991837,0.00016973,2]
[390506155,1760067053072,-500.0,0.00016973,2]
[390506157,1760067053082,-500.0,0.00016973,2]
[390506159,1760067053094,-500.0,0.00016973,2]
[390506161,1760067053104,-500.0,0.00016973,2]
[390506163,1760067053114,-500.0,0.00016973,2]
[390506165,1760067053123,-168.3888056,0.00016976,2]
[390506167,1760067053134,-19292.2273969,0.00016976,2]
[390506169,1760067053144,-8815.26,0.00016985,2]
[390506171,1760067053154,-8815.26,0.00016985,2]
[390506173,1760067053164,-8815.26,0.00016985,2]
[390506175,1760067053174,-8815.26,0.00016985,2]
[390506177,1760067053184,-8815.26,0.00016985,2]
[390506179,1760067053195,-8815.26,0.00016985,2]
[390506181,1760067053205,-8815.26,0.00016985,2]
[390506183,1760067053214,-8815.26809889,0.00016985,2]
[390506185,1760067053223,-151.0,0.00016986,2]
[390506187,1760067053233,-500.0,0.00016986,2]
[390506189,1760067053243,-1012.0,0.00016986,2]
[390506191,1760067053253,-198.54520826,0.00016986,2]
[390506193,1760067053263,-500.0,0.00016986,2]
[390506195,1760067053273,-500.0,0.00016986,2]
[390506208,1760067053408,-500.0,0.00016986,2]
[390506210,1760067053418,-500.0,0.00016986,2]
[390506212,1760067053429,-500.0,0.00016986,2]
[390506214,1760067053440,-500.0,0.00016986,2]
[390506216,1760067053450,-503.88698207,0.00016986,2]
[390506218,1760067053460,-500.69808346,0.00016986,2]
[390506220,1760067053470,-500.0,0.00016986,2]
[390506222,1760067053479,-500.0,0.00016986,2]
[390506224,1760067053489,-439.66486777,0.00016986,2]
[390506226,1760067053499,-500.0,0.00016986,2]
[390506228,1760067053508,-500.0,0.00016986,2]
[390506230,1760067053518,-504.34810435,0.00016986,2]
[390506232,1760067053529,-503.97579708,0.00016986,2]
[390506234,1760067053539,-500.0,0.00016986,2]
[390506236,1760067053548,-500.0,0.00016986,2]
[390506238,1760067053561,-500.0,0.00016986,2]
[390506240,1760067053572,-500.0,0.00016986,2]
[390506242,1760067053581,-500.0,0.00016986,2]
[390506244,1760067053590,-338.0394386,0.00016986,2]
[390506246,1760067053600,-500.0,0.00016986,2]
[390506248,1760067053610,-500.0,0.00016986,2]
[390506250,1760067053619,-500.0,0.00016986,2]
[390506252,1760067053628,-500.0,0.00016986,2]
[390506254,1760067053637,-500.0,0.00016986,2]
[390506256,1760067053647,-500.0,0.00016986,2]
[390506258,1760067053656,-500.0,0.00016986,2]
[390506260,1760067053666,-500.0,0.00016986,2]
[390506262,1760067053675,-500.0,0.00016986,2]
[390506264,1760067053685,-500.0,0.00016986,2]
[390506266,1760067053695,-500.0,0.00016986,2]
[390506267,1760067053704,-500.0,0.00016986,2]
[390506269,1760067053714,-500.0,0.00016986,2]
[390506271,1760067053723,-500.0,0.00016986,2]
[390506273,1760067053733,-503.04335802,0.00016986,2]
[390506275,1760067053743,-500.0,0.00016986,2]
[390506277,1760067053753,-500.0,0.00016986,2]
[390506279,1760067053762,-500.0,0.00016986,2]
[390506281,1760067053771,-500.0,0.00016986,2]
[390506283,1760067053780,-500.0,0.00016986,2]
[390506285,1760067053789,-500.0,0.00016986,2]
[390506287,1760067053800,-500.0,0.00016986,2]
[390506289,1760067053814,-504.02659231,0.00016986,2]
[390506291,1760067053823,-500.0,0.00016986,2]
[390506293,1760067053833,-500.0,0.00016986,2]
[390506295,1760067053843,-151.0,0.00016986,2]
[390506297,1760067053853,-500.0,0.00016986,2]
[390506299,1760067053863,-500.0,0.00016986,2]
[390506301,1760067053873,-500.0,0.00016986,2]
[390506303,1760067053884,-500.0,0.00016986,2]
[390506305,1760067053894,-500.0,0.00016986,2]
[390506307,1760067053904,-500.0,0.00016986,2]
[390506309,1760067053913,-500.0,0.00016986,2]
[390506311,1760067053923,-500.0,0.00016986,2]
[390506313,1760067053932,-500.0,0.00016986,2]
[390506315,1760067053942,-500.0,0.00016986,2]
[390506317,1760067053952,-500.0,0.00016986,2]
[390506319,1760067053961,-500.0,0.00016986,2]
[390506321,1760067053970,-500.0,0.00016986,2]
[390506323,1760067053980,-154.012547,0.00016986,2]
[390506325,1760067053989,-500.0,0.00016986,2]
[390506327,1760067053998,-500.0,0.00016986,2]
[390506328,1760067054007,-500.0,0.00016986,2]
[390506330,1760067054017,-1090.62,0.00016986,2]
[390506332,1760067054026,-500.0,0.00016986,2]
[390506334,1760067054035,-721.87,0.00016986,2]
[390506336,1760067054045,-500.0,0.00016986,2]
[390506338,1760067054056,-151.0,0.00016986,2]
[390506340,1760067054065,-227.457552,0.00016986,2]
[390506342,1760067054075,-500.0,0.00016986,2]
[390506344,1760067054084,-500.0,0.00016986,2]
[390506346,1760067054095,-1364.02,0.00016986,2]
[390506348,1760067054105,-500.0,0.00016986,2]
[390506350,1760067054114,-503.29990184,0.00016986,2]
[390506352,1760067054123,-500.0,0.00016986,2]
[390506354,1760067054132,-500.0,0.00016986,2]
[390506356,1760067054141,-500.0,0.00016986,2]
[390506358,1760067054151,-151.0,0.00016986,2]
[390506360,1760067054160,-500.0,0.00016986,2]
[390506361,1760067054169,-500.0,0.00016986,2]
[390506363,1760067054179,-208.468505,0.00016986,2]
[390506365,1760067054188,-208.468505,0.00016986,2]
[390506367,1760067054197,-1306.93,0.00016986,2]
[390506369,1760067054207,-208.468505,0.00016986,2]
[390506371,1760067054217,-618.43,0.00016986,2]
[390506373,1760067054227,-208.468505,0.00016986,2]
[390506375,1760067054237,-500.0,0.00016986,2]
[390506377,1760067054247,-501.93308142,0.00016986,2]
[390506379,1760067054256,-151.0,0.00016986,2]
[390506381,1760067054266,-151.0,0.00016986,2]
[390506382,1760067054275,-977.0,0.00016986,2]
[390506383,1760067054285,-500.0,0.00016986,2]
[390506384,1760067054295,-500.0,0.00016986,2]
[390506385,1760067054305,-500.0,0.00016986,2]
[390506386,1760067054316,-164.54126561,0.00016986,2]
[390506387,1760067054327,-500.0,0.00016986,2]
[390506388,1760067054337,-445.02304004,0.00016986,2]
[390506389,1760067054347,-500.0,0.00016986,2]
[390506390,1760067054358,-500.0,0.00016986,2]
[390506391,1760067054368,-500.0,0.00016986,2]
[390506392,1760067054377,-500.0,0.00016986,2]
[390506393,1760067054386,-500.0,0.00016986,2]
[390506394,1760067054395,-500.0,0.00016986,2]
[390506395,1760067054405,-500.0,0.00016986,2]
[390506396,1760067054414,-500.0,0.00016986,2]
[390506397,1760067054424,-500.0,0.00016986,2]
[390506398,1760067054433,-500.0,0.00016986,2]
[390506399,1760067054443,-500.0,0.00016986,2]
[390506400,1760067054452,-500.0,0.00016986,2]
[390506401,1760067054462,-500.0,0.00016986,2]
[390506402,1760067054471,-500.0,0.00016986,2]
[390506403,1760067054481,-500.0,0.00016986,2]
[390506404,1760067054490,-1254.35,0.00016986,2]
[390506405,1760067054499,-500.0,0.00016986,2]
[390506406,1760067054508,-500.0,0.00016986,2]
[390506407,1760067054517,-500.0,0.00016986,2]
[390506409,1760067054527,-500.0,0.00016986,2]
[390506411,1760067054536,-500.0,0.00016986,2]
[390506413,1760067054545,-500.87475987,0.00016986,2]
[390506415,1760067054556,-418.308636,0.00016986,2]
[390506417,1760067054565,-500.0,0.00016986,2]
[390506419,1760067054575,-500.0,0.00016986,2]
[390506421,1760067054583,-216.341457,0.00016986,2]
[390506423,1760067054593,-500.0,0.00016986,2]
[390506425,1760067054602,-500.0,0.00016986,2]
[390506427,1760067054611,-500.0,0.00016986,2]
[390506429,1760067054621,-500.0,0.00016986,2]
[390506431,1760067054630,-500.0,0.00016986,2]
[390506433,1760067054639,-500.0,0.00016986,2]
[390506434,1760067054648,-500.0,0.00016986,2]
[390506436,1760067054658,-1300.53,0.00016986,2]
[390506438,1760067054667,-500.0,0.00016986,2]
[390506440,1760067054677,-500.0,0.00016986,2]
[390506442,1760067054686,-500.0,0.00016986,2]
[390506444,1760067054696,-500.0,0.00016986,2]
[390506446,1760067054705,-151.0,0.00016986,2]
[390506448,1760067054714,-152.031456,0.00016986,2]
[390506450,1760067054724,-151.0,0.00016986,2]
[390506452,1760067054733,-500.0,0.00016986,2]
[390506454,1760067054742,-500.0,0.00016986,2]
[390506456,1760067054751,-151.0,0.00016986,2]
[390506458,1760067054760,-151.0,0.00016986,2]
[390506460,1760067054770,-288.254273,0.00016986,2]
[390506462,1760067054782,-983.84,0.00016986,2]
[390506464,1760067054792,-7851.8,0.00016986,2]
[390506466,1760067054802,-500.0,0.00016986,2]
[390506468,1760067054816,-500.0,0.00016986,2]
[390506470,1760067054825,-151.0,0.00016986,2]
[390506472,1760067054835,-500.0,0.00016986,2]
[390506474,1760067054846,-500.0,0.00016986,2]
[390506476,1760067054856,-1034.78,0.00016986,2]
[390506478,1760067054866,-500.0,0.00016986,2]
[390506480,1760067054875,-500.0,0.00016986,2]
[390506482,1760067054887,-151.0,0.00016986,2]
[390506484,1760067054896,-206.107839,0.00016986,2]
[390506486,1760067054905,-500.0,0.00016986,2]
[390506488,1760067054915,-500.0,0.00016986,2]
[390506490,1760067054924,-896.78,0.00016986,2]
[390506492,1760067054934,-500.0,0.00016986,2]
[390506494,1760067054943,-500.0,0.00016986,2]
[390506496,1760067054951,-500.0,0.00016986,2]
[390506498,1760067054961,-500.0,0.00016986,2]
[390506500,1760067054970,-1025.52,0.00016986,2]
[390506502,1760067054979,-500.0,0.00016986,2]
[390506504,1760067054988,-500.0,0.00016986,2]
[390506506,1760067054998,-500.0,0.00016986,2]
[390506508,1760067055007,-529.63,0.00016986,2]
[390506510,1760067055016,-500.0,0.00016986,2]
[390506512,1760067055025,-500.0,0.00016986,2]
[390506514,1760067055034,-500.0,0.00016986,2]
[390506516,1760067055042,-500.0,0.00016986,2]
[390506518,1760067055051,-500.0,0.00016986,2]
[390506520,1760067055063,-375.48229136,0.00016986,2]
[390506522,1760067055073,-791.06,0.00016986,2]
[390506524,1760067055081,-500.0,0.00016986,2]
[390506526,1760067055091,-500.0,0.00016986,2]
[390506528,1760067055100,-501.36818589,0.00016986,2]
[390506530,1760067055108,-245.798995,0.00016986,2]
[390506532,1760067055117,-500.0,0.00016986,2]
[390506534,1760067055126,-500.0,0.00016986,2]
[390506536,1760067055135,-512.41,0.00016986,2]
[390506538,1760067055144,-500.0,0.00016986,2]
[390506540,1760067055153,-500.0,0.00016986,2]
[390506542,1760067055161,-500.0,0.00016986,2]
[390506544,1760067055170,-500.0,0.00016986,2]
[390506546,1760067055179,-152.275113,0.00016986,2]
[390506548,1760067055187,-500.0,0.00016986,2]
[390506550,1760067055196,-2816.71,0.00016986,2]
[390506552,1760067055205,-500.0,0.00016986,2]
[390506554,1760067055213,-500.0,0.00016986,2]
[390506556,1760067055223,-1747.02,0.00016986,2]
[390506558,1760067055232,-151.0,0.00016986,2]
[390506560,1760067055241,-152.507168,0.00016986,2]
[390506562,1760067055250,-2423.98,0.00016986,2]
[390506564,1760067055259,-500.0,0.00016986,2]
[390506566,1760067055267,-500.0,0.00016986,2]
[390506568,1760067055276,-500.0,0.00016986,2]
[390506570,1760067055285,-502.85873749,0.00016986,2]
[390506572,1760067055294,-1668.53,0.00016986,2]
[390506574,1760067055303,-153.866277,0.00016986,2]
[390506576,1760067055312,-281.44631974,0.00016986,2]
[390506578,1760067055321,-500.0,0.00016986,2]
[390506580,1760067055330,-500.0,0.00016986,2]
[390506582,1760067055339,-500.0,0.00016986,2]
[390506583,1760067055348,-3689.38,0.00016986,2]
[390506585,1760067055357,-500.0,0.00016986,2]
[390506588,1760067055366,-222.46611655,0.00016986,2]
[390506590,1760067055375,-6219.03,0.00016986,2]
[390506592,1760067055384,-500.0,0.00016986,2]
[390506593,1760067055393,-500.0,0.00016986,2]
[390506595,1760067055401,-2842.49,0.00016986,2]
[390506597,1760067055410,-930.18,0.00016986,2]
[390506599,1760067055419,-500.0,0.00016986,2]
[390506601,1760067055428,-500.0,0.00016986,2]
[390506603,1760067055437,-500.0,0.00016986,2]
[390506605,1760067055445,-500.0,0.00016986,2]
[390506607,1760067055454,-501.76680069,0.00016986,2]
[390506609,1760067055464,-500.0,0.00016986,2]
[390506611,1760067055473,-500.0,0.00016986,2]
[390506613,1760067055481,-500.0,0.00016986,2]
[390506615,1760067055490,-501.09598001,0.00016986,2]
[390506617,1760067055498,-937.72,0.00016986,2]
[390506619,1760067055507,-1009.55,0.00016986,2]
[390506621,1760067055516,-500.0,0.00016986,2]
[390506623,1760067055525,-785.66,0.00016986,2]
[390506625,1760067055534,-500.0,0.00016986,2]
[390506627,1760067055544,-500.0,0.00016986,2]
[390506629,1760067055556,-500.0,0.00016986,2]
[390506631,1760067055565,-500.0,0.00016986,2]
[390506633,1760067055574,-500.0,0.00016986,2]
[390506635,1760067055583,-500.0,0.00016986,2]
[390506637,1760067055592,-320.003172,0.00016986,2]
[390506639,1760067055604,-5374.97,0.00016986,2]
[390506641,1760067055614,-320.003172,0.00016986,2]
[390506643,1760067055623,-320.003172,0.00016986,2]
[390506645,1760067055632,-500.0,0.00016986,2]
[390506647,1760067055640,-320.003182,0.00016986,2]
[390506649,1760067055649,-1091.46,0.00016986,2]
[390506651,1760067055659,-500.0,0.00016986,2]
[390506653,1760067055668,-500.0,0.00016986,2]
[390506655,1760067055677,-500.0,0.00016986,2]
[390506657,1760067055686,-500.0,0.00016986,2]
[390506671,1760067055809,-961.78,0.00016986,2]
[390506673,1760067055826,-1180.58,0.00016986,2]
[390506675,1760067055841,-687.76,0.00016986,2]
[390506677,1760067055850,-1569.85,0.00016986,2]
[390506679,1760067055859,-840.06,0.00016986,2]
[390506681,1760067055868,-151.0,0.00016986,2]
[390506683,1760067055880,-842.61,0.00016986,2]
[390506685,1760067055889,-244.37532,0.00016986,2]
[390506687,1760067055898,-500.0,0.00016986,2]
[390506689,1760067055906,-500.0,0.00016986,2]
[390506691,1760067055916,-500.0,0.00016986,2]
[390506693,1760067055925,-1455.99,0.00016986,2]
[390506695,1760067055934,-500.0,0.00016986,2]
[390506697,1760067055943,-500.0,0.00016986,2]
[390506699,1760067055952,-501.66725245,0.00016986,2]
[390506701,1760067055960,-500.0,0.00016986,2]
[390506703,1760067055969,-500.0,0.00016986,2]
[390506705,1760067055978,-481.31449246,0.00016986,2]
[390506707,1760067055986,-4407.34,0.00016986,2]
[390506709,1760067055996,-500.0,0.00016986,2]
[390506711,1760067056005,-500.0,0.00016986,2]
[390506713,1760067056014,-500.0,0.00016986,2]
[390506715,1760067056023,-500.0,0.00016986,2]
[390506717,1760067056032,-500.0,0.00016986,2]
[390506719,1760067056041,-1275.82,0.00016986,2]
[390506721,1760067056050,-748.07,0.00016986,2]
[390506723,1760067056060,-500.0,0.00016986,2]
[390506725,1760067056070,-1127.42,0.00016986,2]
[390506727,1760067056079,-558.33584638,0.00016986,2]
[390506729,1760067056088,-500.0,0.00016986,2]
[390506731,1760067056097,-500.0,0.00016986,2]
[390506733,1760067056107,-501.18658578,0.00016986,2]
[390506735,1760067056126,-613.47,0.00016986,2]
[390506737,1760067056135,-3149.72,0.00016986,2]
[390506739,1760067056145,-500.0,0.00016986,2]
[390506741,1760067056154,-500.0,0.00016986,2]
[390506743,1760067056164,-637.86,0.00016986,2]
[390506745,1760067056173,-501.07654025,0.00016986,2]
[390506747,1760067056182,-500.0,0.00016986,2]
[390506749,1760067056191,-500.0,0.00016986,2]
[390506751,1760067056199,-151.0,0.00016986,2]
[390506753,1760067056208,-500.0,0.00016986,2]
[390506755,1760067056217,-500.0,0.00016986,2]
[390506757,1760067056226,-4201.25,0.00016986,2]
[390506759,1760067056235,-500.0,0.00016986,2]
[390506761,1760067056243,-2177.95,0.00016986,2]
[390506763,1760067056252,-503.52901201,0.00016986,2]
[390506765,1760067056261,-151.0,0.00016986,2]
[390506767,1760067056271,-501.57742464,0.00016986,2]
[390506769,1760067056280,-500.0,0.00016986,2]
[390506771,1760067056289,-501.11596704,0.00016986,2]
[390506773,1760067056298,-500.0,0.00016986,2]
[390506775,1760067056309,-322.9958514,0.00016986,2]
[390506777,1760067056318,-603.19,0.00016986,2]
[390506779,1760067056327,-500.0,0.00016986,2]
[390506781,1760067056336,-500.0,0.00016986,2]
[390506783,1760067056346,-840.96,0.00016986,2]
[390506785,1760067056355,-500.0,0.00016986,2]
[390506787,1760067056363,-500.0,0.00016986,2]
[390506789,1760067056373,-151.0,0.00016986,2]
[390506791,1760067056381,-151.0,0.00016986,2]
[390506793,1760067056390,-151.0,0.00016986,2]
[390506795,1760067056399,-502.10397334,0.00016986,2]
[390506797,1760067056408,-880.64,0.00016986,2]
[390506799,1760067056416,-500.0,0.00016986,2]
[390506801,1760067056426,-500.0,0.00016986,2]
[390506803,1760067056435,-2925.02,0.00016986,2]
[390506805,1760067056443,-782.42,0.00016986,2]
[390506807,1760067056452,-500.0,0.00016986,2]
[390506809,1760067056461,-500.0,0.00016986,2]
[390506811,1760067056470,-500.0,0.00016986,2]
[390506813,1760067056479,-500.0,0.00016986,2]
[390506815,1760067056488,-1404.53,0.00016986,2]
[390506817,1760067056497,-200.0,0.00016986,2]
[390506819,1760067056506,-698.81,0.00016986,2]
[390506821,1760067056515,-247.62573965,0.00016986,2]
[390506823,1760067056524,-500.0,0.00016986,2]
[390506825,1760067056533,-500.0,0.00016986,2]
[390506827,1760067056543,-500.0,0.00016986,2]
[390506829,1760067056551,-1305.47,0.00016986,2]
[390506831,1760067056562,-500.0,0.00016986,2]
[390506833,1760067056571,-500.67279678,0.00016986,2]
[390506835,1760067056580,-1011.22,0.00016986,2]
[390506837,1760067056589,-501.79847167,0.00016986,2]
[390506839,1760067056598,-503.80566,0.00016986,2]
[390506841,1760067056607,-500.9515037,0.00016986,2]
[390506843,1760067056616,-500.0,0.00016986,2]
[390506845,1760067056624,-500.0,0.00016986,2]
[390506847,1760067056633,-2544.55,0.00016986,2]
[390506849,1760067056642,-826.8,0.00016986,2]
[390506851,1760067056651,-151.0,0.00016986,2]
[390506853,1760067056660,-502.3397647,0.00016986,2]
[390506855,1760067056669,-151.0,0.00016986,2]
[390506857,1760067056678,-618.51,0.00016986,2]
[390506859,1760067056687,-849.84,0.00016986,2]
[390506861,1760067056697,-151.0,0.00016986,2]
[390506863,1760067056707,-1923.9,0.00016986,2]
[390506865,1760067056716,-813.97,0.00016986,2]
[390506867,1760067056725,-151.0,0.00016986,2]
[390506868,1760067056734,-500.82750566,0.00016986,2]
[390506869,1760067056743,-151.0,0.00016986,2]
[390506870,1760067056752,-151.0,0.00016986,2]
[390506871,1760067056763,-500.0,0.00016986,2]
[390506872,1760067056772,-501.87926337,0.00016986,2]
[390506873,1760067056782,-3527.12,0.00016986,2]
[390506874,1760067056791,-501.64170303,0.00016986,2]
[390506875,1760067056801,-500.0,0.00016986,2]
[390506877,1760067056814,-1011.01,0.00016986,2]
[390506879,1760067056823,-500.0,0.00016986,2]
[390506881,1760067056832,-502.92534349,0.00016986,2]
[390506883,1760067056841,-500.0,0.00016986,2]
[390506885,1760067056851,-2369.71,0.00016986,2]
[390506887,1760067056860,-500.0,0.00016986,2]
[390506889,1760067056869,-399.44342891,0.00016986,2]
[390506891,1760067056879,-500.0,0.00016986,2]
[390506893,1760067056890,-500.0,0.00016986,2]
[390506895,1760067056900,-502.33835754,0.00016986,2]
[390506897,1760067056909,-707.25,0.00016986,2]
[390506899,1760067056918,-500.0,0.00016986,2]
[390506901,1760067056927,-440.26320699,0.00016986,2]
[390506903,1760067056937,-536.43,0.00016986,2]
[390506905,1760067056945,-217.454934,0.00016986,2]
[390506907,1760067056954,-217.454934,0.00016986,2]
[390506909,1760067056963,-501.81590937,0.00016986,2]
[390506911,1760067056972,-661.1,0.00016986,2]
[390506913,1760067056981,-217.454934,0.00016986,2]
[390506915,1760067056991,-500.0,0.00016986,2]
[390506917,1760067057000,-217.454942,0.00016986,2]
[390506919,1760067057009,-2000.7,0.00016986,2]
[390506921,1760067057018,-500.0,0.00016986,2]
[390506923,1760067057027,-500.0,0.00016986,2]
[390506925,1760067057036,-500.0,0.00016986,2]
[390506927,1760067057044,-500.0,0.00016986,2]
[390506929,1760067057053,-151.0,0.00016986,2]
[390506931,1760067057063,-151.0,0.00016986,2]
[390506933,1760067057072,-301.010174,0.00016986,2]
[390506935,1760067057080,-500.0,0.00016986,2]
[390506937,1760067057090,-151.0,0.00016986,2]
[390506939,1760067057099,-239.06881,0.00016986,2]
[390506941,1760067057108,-301.010174,0.00016986,2]
[390506943,1760067057117,-500.0,0.00016986,2]
[390506945,1760067057126,-539.06,0.00016986,2]
[390506947,1760067057135,-301.010174,0.00016986,2]
[390506950,1760067057144,-1215.57,0.00016986,2]
[390506952,1760067057154,-500.0,0.00016986,2]
[390506954,1760067057163,-301.010177,0.00016986,2]
[390506956,1760067057172,-502.38203244,0.00016986,2]
[390506958,1760067057181,-500.0,0.00016986,2]
[390506960,1760067057191,-1042.97,0.00016986,2]
[390506962,1760067057199,-151.0,0.00016986,2]
[390506964,1760067057208,-500.0,0.00016986,2]
[390506966,1760067057216,-501.10395963,0.00016986,2]
[390506968,1760067057225,-500.0,0.00016986,2]
[390506969,1760067057235,-1273.17792349,0.00016995,2]
[390506971,1760067057243,-161.68439934,0.00017,2]
[390506973,1760067057252,-158.0,0.00017,2]
[390506975,1760067057261,-418.308636,0.00017,4]
[390506977,1760067057270,-216.341457,0.00017,4]
[390506979,1760067057278,-4291.06445377,0.00017,2]
[390506981,1760067057287,-3285.28889424,0.00017023,2]
[390506983,1760067057296,-420.0,0.00017037,2]
[390506985,1760067057306,-327.3850708,0.00017146,2]
[390506987,1760067057315,-362.9477756,0.00017146,2]
[390506989,1760067057324,-53266.372016,0.00017146,2]
[390506991,1760067057333,-160.934717,0.00017146,2]
[390506993,1760067057342,-208.468505,0.00017146,2]
[390506995,1760067057351,-208.468505,0.00017146,2]
[390506997,1760067057360,-208.468505,0.00017146,2]
[390506999,1760067057369,-208.468505,0.00017146,2]
[390507001,1760067057378,-151.0,0.00017146,2]
[390507003,1760067057387,-151.0,0.00017146,2]
[390507005,1760067057398,-151.0,0.00017146,2]
[390507007,1760067057416,-151.0,0.00017146,2]
[390507009,1760067057425,-311.55715187,0.00017205,3]
[390507011,1760067057434,-402.20179238,0.00017249,2]
[390507013,1760067057443,-234.32063665,0.00017249,2]
[390507015,1760067057452,-160.0,0.00017249,2]
[390507017,1760067057461,-160.0,0.00017249,2]
[390507019,1760067057470,-151.0,0.0001725,2]
[390507021,1760067057479,-186.21259921,0.00017259,2]
[390507023,1760067057487,-151.0,0.0001726,2]
[390507025,1760067057496,-500.0,0.0001726,2]
[390507027,1760067057505,-1012.0,0.0001726,2]
[390507029,1760067057514,-509.76719434,0.0001726,2]
[390507031,1760067057524,-500.0,0.0001726,2]
[390507033,1760067057533,-3419.24466122,0.0001726,2]
[390507035,1760067057542,-506.57363889,0.0001726,2]
[390507037,1760067057551,-2026.29455556,0.0001726,2]
[390507039,1760067057562,-4554.60358726,0.0001726,2]
[390507041,1760067057571,-503.05416711,0.0001726,2]
[390507043,1760067057580,-500.0,0.0001726,2]
[390507045,1760067057589,-503.8566298,0.0001726,2]
[390507047,1760067057598,-505.37018724,0.0001726,2]
[390507049,1760067057606,-504.11079251,0.0001726,2]
[390507051,1760067057615,-606.63815036,0.0001726,2]
[390507053,1760067057624,-156.61624099,0.0001726,2]